bitfinex-derivatives/quotes_SOLF0:USTF0_20250820
["timestamp","ask_amount","ask_price","bid_price","bid_amount"]
[1755718925035,8.1817,185.82,185.78,5.3827]
[1755718925225,364.36,185.87,185.76,2.86]
[1755718925431,361.56,185.87,185.79,2.86]
[1755718925626,137.8,185.9,185.79,2.86]
[1755718925825,2.8,185.9,185.81,3.00801398]
[1755718926032,372.4947,185.97,185.81,3.00801398]
[1755718926033,2.8,185.94,185.82,2.86]
[1755718926229,134.98,185.93,185.82,2.86]
[1755718926436,5.3788,185.92,185.88,5.3797]
[1755718926630,134.98,185.93,185.86,2.86]
[1755718926831,134.98,185.95,185.86,2.86]
[1755718927027,5.3781,185.94,185.89,5.3793]
[1755718927231,134.98,185.95,185.89,8.2393]
[1755718927427,134.98,185.95,185.89,2.86]
[1755718927735,134.98,185.95,185.9,5.3792]
[1755718927930,2.8,185.94,185.9,5.3792]
[1755718928633,2.8,185.94,185.82,4.73979291]
[1755718928838,2.8,185.94,185.85,2.86]
[1755718929837,8.1789,185.92,185.87,5.3799]
[1755718930138,2.8,185.94,185.83,2.86]
[1755718930342,134.98,185.95,185.9,2.86]
[1755718930343,134.94,185.95,185.9,2.86]
[1755718930534,134.94,185.95,185.83,2.86]
[1755718930838,5.3781,185.94,185.9,5.379]
[1755718931038,5.3781,185.94,185.9,8.239]
[1755718932034,2.8,185.94,185.8,7.59979291]
[1755718932241,2.8,185.94,185.81,2.86]
[1755718933236,134.94,185.95,185.81,2.86]
[1755718933739,134.94,185.95,185.9,5.3792]
[1755718934036,2.8,185.94,185.9,5.3792]
[1755718934532,2.8,185.94,185.79,4.38110746]
[1755718934533,2.8,185.94,185.86,5.3801]
[1755718934739,2.8,185.94,185.82,2.86]
[1755718935136,361.74,185.97,185.84,2.86]
[1755718935337,134.88,185.96,185.84,2.86]
[1755718935536,134.88,185.96,185.88,2.86]
[1755718935735,361.74,185.97,185.88,2.86]
[1755718935936,134.88,185.96,185.88,2.86]
[1755718938243,2.8,185.95,185.88,2.86]
[1755718938740,2.8,185.95,185.92,5.3784]
[1755718938939,2.8,185.95,185.88,2.86]
[1755718939339,2.8,185.95,185.91,5.3789]
[1755718939537,134.88,185.96,185.83,4.73979291]
[1755718939743,16.15,186.07,185.83,4.73979291]
[1755718939744,2.8,185.99,185.84,2.86]
[1755718939937,2.8,185.97,185.89,2.86]
[1755718941339,2.8,185.97,185.82,2.86]
[1755718941547,4.73979291,185.97,185.82,2.86]
[1755718941745,2.8,185.96,185.82,2.86]
[1755718942645,2.8,185.96,185.79,4.73979291]
[1755718942844,2.8,185.96,185.8,2.86]
[1755718943042,2.8,185.96,185.83,4.73979291]
[1755718943240,2.8,185.96,185.92,5.3786]
[1755718943435,2.8,185.96,185.92,2.86]
[1755718943839,2.8,185.95,185.88,2.86]
[1755718944442,7.53979291,186.01,185.88,2.86]
[1755718944839,7.53979291,186.01,185.95,5.3775]
[1755718945043,2.8,186.01,185.95,5.3775]
[1755718945340,2.8,186.01,185.91,2.86]
[1755718946543,2.8,186.01,185.94,5.3778]
[1755718946939,2.8,186.01,185.91,2.86]
[1755718947147,2.8,186.01,185.94,5.3778]
[1755718948147,2.8,186.01,185.93,5.3783]
[1755718949045,2.82,186.0,185.91,2.86]
[1755718949645,2.82,186.0,185.93,5.3782]
[1755718950350,5.82697505,186.0,185.93,5.3782]
[1755718950546,5.82697505,186.0,185.91,2.86]
[1755718950844,2.82,186.0,185.91,2.86]
[1755718951741,2.82,186.0,185.96,5.3773]
[1755718951946,2.82,185.99,185.96,5.3773]
[1755718952143,2.82,185.99,185.98,5.3769]
[1755718952344,3.00697505,186.03,185.98,5.3769]
[1755718952544,2.82,186.01,185.98,5.3769]
[1755718952745,2.82,186.0,185.98,5.3769]
[1755718953254,2.82,186.0,185.94,2.78]
[1755718954547,2.82,186.0,185.95,2.78]
[1755718954749,3.00697505,186.03,185.95,2.78]
[1755718954949,3.00697505,186.03,185.9,3.00697505]
[1755718955147,2.82,185.99,185.91,2.78]
[1755718956848,2.82,185.99,185.96,5.3773]
[1755718957059,2.82,185.99,185.96,8.1573]
[1755718957357,2.82,186.03,185.96,2.78]
[1755718958247,134.72,186.04,185.96,2.78]
[1755718958457,2.82,186.02,185.96,2.78]
[1755718958956,2.82,186.02,185.92,2.78]
[1755718959758,137.72697505,186.04,185.92,2.78]
[1755718961151,134.72,186.04,185.92,2.78]
[1755718961350,2.82,186.03,185.97,5.3769]
[1755718961552,2.82,186.03,185.95,2.78]
[1755718961761,2.82,186.03,185.98,5.3769]
[1755718962058,2.82,186.03,185.95,2.78]
[1755718963362,3.00697505,186.02,185.95,5.3778]
[1755718963564,2.82,186.01,185.95,5.3778]
[1755718965459,134.72,186.04,185.91,3.00697505]
[1755718965660,2.82,186.0,185.93,2.78]
[1755718966265,2.82,186.0,185.98,5.3769]
[1755718967166,2.82,186.03,185.99,5.3766]
[1755718967363,137.72697505,186.04,185.99,5.3766]
[1755718967562,2.82,186.02,185.99,5.3766]
[1755718967764,2.82,186.01,185.99,5.3766]
[1755718968068,2.82,186.0,185.99,5.3766]
[1755718968268,2.82,186.0,185.98,5.3768]
[1755718968965,2.82,186.0,185.99,5.3766]
[1755718970169,2.82,186.0,185.98,5.3768]
[1755718970360,3.00697505,186.01,185.91,7.14847536]
[1755718970561,2.82,185.97,185.91,2.78]
[1755718971269,3.00697505,186.01,185.91,2.78]
[1755718971473,134.64,186.02,185.93,2.78]
[1755718971772,134.64,186.02,185.99,5.3764]
[1755718971965,137.46,186.02,185.99,5.3764]
[1755718972166,134.64,186.02,185.99,5.3764]
[1755718972366,2.82,186.01,185.99,5.3764]
[1755718976072,2.82,186.01,185.98,5.3768]
[1755718976470,2.82,186.01,185.95,2.78]
[1755718977566,2.82,186.01,185.98,5.3767]
[1755718979578,2.82,186.01,185.99,5.3766]
[1755718980079,134.64,186.02,186.01,5.376]
[1755718980375,134.64,186.02,186.01,8.306]
[1755718980871,134.64,186.02,185.99,2.93]
[1755718981278,134.64,186.02,186.0,2.93]
[1755718981580,134.64,186.02,185.96,4.36847536]
[1755718981774,134.64,186.02,185.99,2.93]
[1755718981975,134.64,186.02,186.01,5.376]
[1755718982281,134.64,186.02,185.96,4.36847536]
[1755718982677,134.64,186.02,185.99,2.93]
[1755718982878,134.64,186.02,186.01,5.376]
[1755718983279,134.64,186.02,185.99,2.93]
[1755718983679,134.64,186.02,186.0,5.3761]
[1755718983875,134.64,186.02,185.99,2.93]
[1755718984074,134.64,186.02,185.97,2.93]
[1755718984270,134.64,186.02,185.96,4.36847536]
[1755718984475,134.64,186.02,185.99,2.93]
[1755718984675,134.64,186.02,186.01,5.376]
[1755718991589,2.86,186.05,186.01,5.376]
[1755718991890,134.54,186.06,186.02,5.3757]
[1755718992089,2.86,186.03,186.02,5.3757]
[1755718992391,2.86,186.03,185.99,2.93]
[1755718992592,2.86,186.03,186.0,2.93]
[1755718993597,2.86,186.03,186.02,5.3757]
[1755718993896,137.4,186.06,185.96,4.36847536]
[1755718994196,2.86,186.06,185.97,2.93]
[1755718994799,2.86,186.06,186.02,5.3755]
[1755718994997,2.86,186.05,186.02,2.93]
[1755718995699,2.86,186.05,186.03,5.3754]
[1755718996295,2.86,186.06,186.01,5.376]
[1755718996697,2.86,186.06,185.97,2.93]
[1755718996899,2.86,186.06,186.03,5.3754]
[1755718997099,2.86,186.05,186.03,5.3754]
[1755719000403,2.86,186.06,186.02,5.3756]
[1755719000608,2.86,186.06,186.0,2.93]
[1755719000809,3.00697505,186.06,185.97,2.93]
[1755719001004,3.00697505,186.06,186.0,5.3761]
[1755719001211,2.86,186.04,185.97,2.93]
[1755719001710,2.86,186.04,185.97,7.29847536]
[1755719002008,2.86,186.04,185.98,2.93]
[1755719002509,2.86,186.04,186.01,5.3758]
[1755719002704,2.86,186.03,186.01,5.3758]
[1755719004008,2.86,186.01,185.96,4.36847536]
[1755719004211,2.86,186.02,185.95,7.29847536]
[1755719004612,2.86,186.02,185.97,5.3771]
[1755719004807,2.86,186.02,185.95,2.93]
[1755719005008,2.86,186.02,185.96,5.3773]
[1755719005213,2.86,186.02,185.95,2.93]
[1755719005613,137.46697505,186.03,185.97,5.377]
[1755719005812,2.92,186.01,185.95,2.93]
[1755719006008,2.92,186.01,185.98,5.3767]
[1755719006216,134.46,186.03,185.95,10.22545041]
[1755719006416,134.46,186.03,185.96,4.36847536]
[1755719006606,134.46,186.03,185.97,2.85]
[1755719007916,2.92,186.02,185.99,5.3764]
[1755719008118,134.46,186.03,185.96,4.40571018]
[1755719008318,134.46,186.03,186.0,2.85]
[1755719008916,137.38,186.03,186.0,2.85]
[1755719009518,137.38,186.03,186.0,8.2262]
[1755719009719,137.38,186.03,185.96,4.40571018]
[1755719009720,134.46,186.03,186.01,2.85]
[1755719010121,134.46,186.03,186.01,8.2258]
[1755719010516,134.46,186.03,186.02,5.3757]
[1755719011325,134.46,186.03,186.01,8.226]
[1755719011823,137.38,186.03,186.01,5.376]
[1755719012719,134.46,186.03,186.0,5.3762]
[1755719012924,2.92,186.02,185.97,2.85]
[1755719013220,2.92,186.02,185.98,2.85]
[1755719013818,2.92,186.01,185.99,5.3764]
[1755719014224,134.46,186.03,185.99,5.3764]
[1755719014529,2.92,186.01,186.0,5.3763]
[1755719014926,134.46,186.03,186.0,5.3763]
[1755719015121,3.00697505,186.07,186.01,5.376]
[1755719015327,2.92,186.05,186.01,8.226]
[1755719015516,2.92,186.05,186.01,2.85]
[1755719015723,2.92,186.05,186.02,5.3757]
[1755719016532,134.42,186.08,186.02,5.3757]
[1755719016830,134.42,186.08,186.01,2.85]
[1755719017223,134.42,186.08,186.04,5.375]
[1755719017624,2.92,186.06,186.04,5.375]
[1755719018728,2.92,186.07,186.05,5.3748]
[1755719018929,134.42,186.08,186.01,2.85]
[1755719019432,134.42,186.08,186.01,7.25571018]
[1755719019732,137.34,186.08,186.05,5.3747]
[1755719019935,137.34,186.08,186.01,2.85]
[1755719020226,134.42,186.08,186.01,2.85]
[1755719020426,2.92,186.05,186.01,2.85]
[1755719021237,134.42,186.08,186.01,2.85]
[1755719021436,2.92,186.04,186.01,2.85]
[1755719021637,5.92697505,186.1,186.0,2.85]
[1755719021830,2.92,186.1,186.04,2.85]
[1755719022230,134.4,186.11,186.03,0.04085093]
[1755719022429,2.92,186.09,186.03,0.04085093]
[1755719022830,2.92,186.09,186.03,5.41605093]
[1755719023337,5.92697505,186.09,186.03,0.04085093]
[1755719023633,2.92,186.09,186.03,0.04085093]
[1755719028846,2.92,186.09,186.03,5.41625093]
[1755719030644,2.92,186.09,186.04,5.3751]
[1755719030843,2.92,186.08,186.04,8.2251]
[1755719031045,2.92,186.08,186.05,2.85]
[1755719031445,2.92,186.08,186.04,2.85]
[1755719031639,2.92,186.1,186.03,0.04085093]
[1755719032545,2.92,186.1,186.03,5.41615093]
[1755719034047,2.92,186.1,186.03,0.04085093]
[1755719035944,2.87,186.06,186.03,0.04085093]
[1755719036252,2.87,186.04,186.03,0.04085093]
[1755719038650,3.41,186.04,185.96,3.0]
[1755719038944,137.38579241,186.05,185.96,3.0]
[1755719038945,5.87697505,186.02,185.96,3.0]
[1755719039449,137.21,186.01,185.97,3.0]
[1755719039650,137.21,186.01,185.96,5.3775]
[1755719039840,137.21,186.01,185.97,3.0]
[1755719040044,137.24532455,186.01,185.93,7.40634599]
[1755719040239,3.00697505,185.99,185.93,4.40634599]
[1755719040448,2.87,185.96,185.9,3.0]
[1755719040751,2.87,185.96,185.91,5.3787]
[1755719040953,134.34,185.98,185.91,7.40634599]
[1755719041247,134.34,185.98,185.94,8.3778]
[1755719041248,0.03842056,185.95,185.94,8.3778]
[1755719042245,134.34,186.01,185.97,5.3771]
[1755719042545,134.34,186.04,185.95,7.40634599]
[1755719042744,134.34,186.04,185.96,3.0]
[1755719043344,2.87,186.03,185.96,3.0]
[1755719043545,134.34,186.04,185.98,0.03572957]
[1755719043841,2.87,186.01,185.98,0.03572957]
[1755719044043,2.87,186.01,185.98,3.03572957]
[1755719044449,134.34,186.04,185.98,3.03572957]
[1755719044651,137.21,186.04,185.98,3.03572957]
[1755719045047,2.87,186.04,185.98,3.03572957]
[1755719045350,3.00697505,186.05,185.99,3.0]
[1755719045351,134.34,186.05,185.99,3.0]
[1755719045841,134.34,186.05,186.02,5.3757]
[1755719046042,134.34,186.05,186.03,3.0]
[1755719047356,134.34,186.05,186.02,0.03856645]
[1755719047545,137.21,186.05,186.02,0.03856645]
[1755719048751,137.21,186.05,186.02,3.03856645]
[1755719049854,137.24724961,186.05,186.02,3.03856645]
[1755719050554,134.37724961,186.05,186.02,0.03856645]
[1755719050748,2.87,186.04,186.02,0.03856645]
[1755719050950,2.87,186.03,186.02,0.03856645]
[1755719051749,134.37724961,186.05,186.02,0.03856645]
[1755719051950,2.87,186.04,186.02,0.03856645]
[1755719052153,134.37724961,186.05,186.02,0.03856645]
[1755719052455,137.24724961,186.05,186.02,0.03856645]
[1755719053056,134.37724961,186.05,186.02,3.03856645]
[1755719053256,2.87,186.04,186.02,0.03856645]
[1755719053454,134.37724961,186.05,186.02,0.03856645]
[1755719053653,137.24724961,186.05,186.02,3.03856645]
[1755719053854,137.24724961,186.05,186.02,0.03856645]
[1755719055062,137.24724961,186.05,186.02,5.41426645]
[1755719055955,137.24724961,186.05,186.02,0.03856645]
[1755719056853,2.87,186.03,186.02,0.03856645]
[1755719058564,137.17,186.03,186.02,0.03856645]
[1755719059562,0.03724961,186.05,186.02,0.03856645]
[1755719059761,0.03724961,186.05,186.02,3.03856645]
[1755719060170,2.90724961,186.05,186.02,3.03856645]
[1755719060376,2.87,186.04,186.02,0.03856645]
[1755719060574,2.87,186.03,186.02,0.03856645]
[1755719060972,0.03724961,186.05,186.02,0.03856645]
[1755719061276,0.03724961,186.05,186.02,3.03856645]
[1755719062069,2.90724961,186.05,186.02,3.03856645]
[1755719062569,2.87,186.03,186.02,0.03856645]
[1755719063879,0.03724961,186.05,186.02,0.03856645]
[1755719064174,2.87,186.04,186.02,0.03856645]
[1755719064778,0.03724961,186.05,186.03,3.0]
[1755719065672,0.03724961,186.05,186.02,0.03856645]
[1755719067180,0.03724961,186.05,186.02,2.88856645]
[1755719067581,2.99724961,186.05,186.02,2.88856645]
[1755719068083,0.03724961,186.05,186.02,0.03856645]
[1755719068382,2.96,186.03,186.02,0.03856645]
[1755719069785,5.96697505,186.03,186.02,0.03856645]
[1755719070774,0.03724961,186.05,186.02,0.03856645]
[1755719070980,0.03724961,186.05,186.02,2.88856645]
[1755719071978,0.03724961,186.05,186.02,8.26426645]
[1755719074595,0.03724961,186.05,186.04,2.85]
[1755719075092,0.03724961,186.05,186.04,8.2252]
[1755719075493,0.03724961,186.05,186.04,2.85]
[1755719075984,0.03724961,186.05,186.02,2.88856645]
[1755719076187,2.99724961,186.05,186.02,2.88856645]
[1755719076387,0.03724961,186.05,186.03,2.85]
[1755719076992,0.03724961,186.05,186.02,0.03856645]
[1755719077194,0.03724961,186.05,186.04,2.85]
[1755719079500,0.03724961,186.05,186.04,8.2252]
[1755719080099,0.03724961,186.05,186.04,2.85]
[1755719080393,2.99724961,186.05,186.02,0.03856645]
[1755719080594,2.99724961,186.05,186.02,2.88856645]
[1755719080795,2.99724961,186.05,186.03,2.85]
[1755719080796,0.03724961,186.05,186.03,2.85]
[1755719080994,0.03724961,186.05,186.02,0.03856645]
[1755719081299,0.03724961,186.05,186.04,2.85]
[1755719083996,0.03724961,186.05,186.04,8.2252]
[1755719085304,0.03724961,186.05,186.04,2.85]
[1755719086498,0.03724961,186.05,186.04,8.2252]
[1755719087504,134.22,186.1,186.07,8.2241]
[1755719087799,137.18,186.1,186.07,2.85]
[1755719088004,134.18,186.14,186.08,5.3738]
[1755719088199,2.96,186.13,186.07,2.85]
[1755719088400,134.18,186.14,186.07,2.85]
[1755719088596,2.96,186.13,186.1,5.3734]
[1755719089007,2.96,186.13,186.09,8.2236]
[1755719090006,2.96,186.13,186.1,2.85]
[1755719090407,2.96,186.13,186.09,5.3736]
[1755719090604,2.96,186.12,186.09,5.3736]
[1755719093204,2.96,186.12,186.09,8.2236]
[1755719093906,5.97438273,186.24,186.09,8.2236]
[1755719093907,2.96,186.2,186.09,6.39697505]
[1755719094099,2.96,186.23,186.12,3.00697505]
[1755719094306,137.1,186.23,186.13,2.85]
[1755719094603,137.1,186.23,186.16,2.88467245]
[1755719094909,137.1,186.23,186.18,5.3709]
[1755719095108,137.1,186.23,186.19,2.85]
[1755719095603,134.14,186.23,186.16,0.03467245]
[1755719095809,134.12,186.28,186.19,3.02]
[1755719096010,134.12,186.28,186.2,3.02]
[1755719096604,134.12,186.28,186.22,5.40763958]
[1755719096813,136.9,186.28,186.22,3.05773958]
[1755719097018,136.9,186.28,186.22,0.03773958]
[1755719097405,2.78,186.26,186.22,0.03773958]
[1755719097607,137.12697505,186.28,186.22,0.03773958]
[1755719097807,2.78,186.24,186.22,0.03773958]
[1755719098014,2.78,186.27,186.22,0.03773958]
[1755719098415,2.78,186.24,186.22,0.03773958]
[1755719098916,2.78,186.23,186.22,0.03773958]
[1755719100522,2.78,186.23,186.13,3.02]
[1755719100711,2.78,186.21,186.13,8.3925]
[1755719100908,3.00697505,186.19,186.07,3.00697505]
[1755719101113,3.00697505,186.19,186.09,3.02]
[1755719101114,2.78,186.18,186.09,3.02]
[1755719101309,2.78,186.18,186.1,5.3732]
[1755719101617,134.06,186.22,186.09,3.02]
[1755719101618,2.78,186.21,186.09,3.02]
[1755719101915,134.06,186.22,186.19,3.02]
[1755719102211,2.78,186.21,186.15,3.02]
[1755719102605,2.78,186.21,186.16,0.03897366]
[1755719103011,137.06697505,186.22,186.16,0.03897366]
[1755719103313,2.78,186.21,186.16,0.03897366]
[1755719103914,137.06697505,186.22,186.16,0.03897366]
[1755719104117,2.78,186.17,186.16,0.03897366]
[1755719104511,134.04,186.22,186.16,3.05897366]
[1755719104916,134.04,186.22,186.16,3.02]
[1755719105422,3.00697505,186.26,186.16,3.02]
[1755719105620,3.00697505,186.26,186.19,3.02]
[1755719105826,134.02,186.25,186.19,3.02]
[1755719106018,134.02,186.25,186.19,3.05575569]
[1755719106320,134.02,186.25,186.2,5.3703]
[1755719106527,134.02,186.25,186.21,3.02]
[1755719106721,134.02,186.26,186.21,3.02]
[1755719106912,134.02,186.26,186.19,0.03575569]
[1755719107116,2.78,186.25,186.19,3.02]
[1755719107518,2.78,186.24,186.21,0.03910629]
[1755719108117,134.02,186.26,186.21,0.03910629]
[1755719108322,2.78,186.23,186.21,0.03910629]
[1755719108518,134.02,186.24,186.21,0.03910629]
[1755719108718,136.8,186.24,186.21,0.03910629]
[1755719109029,134.02,186.24,186.21,0.03910629]
[1755719109227,2.78,186.23,186.21,0.03910629]
[1755719109726,134.02,186.24,186.21,0.03910629]
[1755719109921,3.00697505,186.27,186.21,0.03910629]
[1755719110118,2.78,186.28,186.22,3.02]
[1755719110317,2.78,186.27,186.22,3.02]
[1755719110826,136.78,186.26,186.22,3.02]
[1755719111026,136.78,186.26,186.23,0.03728444]
[1755719111522,2.78,186.26,186.23,0.03728444]
[1755719111722,134.0,186.25,186.23,0.03728444]
[1755719112226,2.78,186.26,186.23,0.03728444]
[1755719112518,133.98,186.25,186.23,0.03728444]
[1755719113519,2.78,186.26,186.23,0.03728444]
[1755719113725,133.98,186.26,186.23,3.05728444]
[1755719114323,136.76,186.26,186.23,0.03728444]
[1755719114518,2.78,186.25,186.23,0.03728444]
[1755719116418,2.78,186.3,186.24,3.02]
[1755719116624,136.74,186.29,186.25,3.02]
[1755719116819,133.96,186.29,186.25,3.02]
[1755719117024,2.78,186.28,186.24,3.02]
[1755719117226,136.74,186.28,186.24,3.02]
[1755719117823,2.78,186.28,186.24,3.02]
[1755719118025,133.96,186.27,186.24,3.02]
[1755719118226,2.78,186.28,186.24,3.02]
[1755719118414,133.96,186.27,186.24,3.02]
[1755719119023,2.78,186.27,186.24,3.02]
[1755719119420,3.00697505,186.31,186.24,3.02]
[1755719119421,2.78,186.3,186.24,3.02]
[1755719119725,133.96,186.29,186.23,5.40678444]
[1755719119921,3.00697505,186.31,186.24,3.02]
[1755719120126,3.00697505,186.31,186.24,8.3893]
[1755719120327,133.96,186.3,186.24,8.3893]
[1755719120728,2.78,186.33,186.25,8.389]
[1755719120923,2.78,186.33,186.26,3.02]
[1755719121426,133.94,186.32,186.26,3.02]
[1755719121826,133.94,186.32,186.26,8.3888]
[1755719122227,2.78,186.33,186.26,8.3888]
[1755719122439,133.94,186.32,186.26,8.3888]
[1755719122631,133.94,186.32,186.22,3.00697505]
[1755719122827,133.94,186.32,186.23,3.02]
[1755719123331,133.94,186.32,186.22,3.00697505]
[1755719123332,136.72,186.33,186.26,8.3886]
[1755719123928,2.78,186.33,186.26,3.02]
[1755719124130,2.78,186.35,186.26,3.02]
[1755719124325,133.92,186.34,186.28,0.0379352]
[1755719125522,133.92,186.34,186.28,3.0579352]
[1755719127028,133.9,186.33,186.28,3.0579352]
[1755719127224,133.9,186.33,186.3,2.93]
[1755719128027,133.9,186.33,186.28,0.0379352]
[1755719128232,133.9,186.33,186.3,2.93]
[1755719128530,2.78,186.35,186.3,2.93]
[1755719128531,1.23427978,186.41,186.31,2.93]
[1755719128831,135.13427978,186.41,186.33,3.00697505]
[1755719129040,135.13427978,186.41,186.34,2.93]
[1755719129236,1.23427978,186.41,186.35,0.0357689]
[1755719129436,1.23427978,186.41,186.35,5.4017689]
[1755719130037,1.23427978,186.41,186.35,0.0357689]
[1755719130736,2.78,186.39,186.35,0.0357689]
[1755719130932,2.78,186.38,186.35,0.0357689]
[1755719131139,1.23427978,186.41,186.35,2.9657689]
[1755719131333,135.11427978,186.41,186.35,2.9657689]
[1755719131534,1.23427978,186.41,186.35,2.9657689]
[1755719131740,135.11427978,186.41,186.35,2.9657689]
[1755719132242,135.11427978,186.41,186.35,0.0357689]
[1755719132543,2.78,186.38,186.35,0.0357689]
[1755719132746,2.78,186.4,186.35,0.0357689]
[1755719133048,3.00697505,186.38,186.35,0.0357689]
[1755719133242,2.78,186.36,186.35,0.0357689]
[1755719133440,2.78,186.36,186.24,2.93]
[1755719133636,3.00697505,186.33,186.24,2.93]
[1755719133837,2.78,186.32,186.24,2.93]
[1755719134838,0.03491786,186.3,186.24,2.93]
[1755719135044,2.78,186.29,186.2,2.93]
[1755719135745,2.78,186.29,186.21,5.3702]
[1755719135939,0.03906682,186.26,186.22,2.93]
[1755719136144,0.03906682,186.26,186.23,2.93]
[1755719136749,0.03906682,186.26,186.19,3.00697505]
[1755719136941,0.03906682,186.26,186.2,2.93]
[1755719137536,0.03906682,186.26,186.2,8.3004]
[1755719137940,0.03906682,186.26,186.22,5.3697]
[1755719138145,0.03906682,186.26,186.2,2.93]
[1755719138546,0.03906682,186.26,186.24,2.93]
[1755719138743,0.03906682,186.26,186.25,2.93]
[1755719139350,0.03906682,186.26,186.25,8.2991]
[1755719139548,2.78,186.34,186.25,6.47697505]
[1755719139748,2.78,186.34,186.26,2.93]
[1755719140455,2.78,186.34,186.3,2.93]
[1755719141046,2.78,186.34,186.3,2.97029859]
[1755719141245,2.78,186.34,186.3,8.33789859]
[1755719141551,360.72,186.37,186.31,2.93]
[1755719141950,363.5,186.37,186.31,2.93]
[1755719142546,360.72,186.37,186.31,2.93]
[1755719144453,2.78,186.36,186.3,0.04029859]
[1755719144747,5.78697505,186.36,186.3,0.04029859]
[1755719144943,2.78,186.34,186.3,0.04029859]
[1755719145144,133.82,186.33,186.3,0.04029859]
[1755719145761,2.78,186.31,186.3,0.04029859]
[1755719148056,133.82,186.31,186.3,0.04029859]
[1755719148252,2.78,186.34,186.3,0.04029859]
[1755719148453,133.82,186.33,186.3,0.04029859]
[1755719148654,133.82,186.33,186.3,2.97029859]
[1755719148854,360.72,186.37,186.31,2.93]
[1755719149055,133.8,186.36,186.31,8.2972]
[1755719149255,133.8,186.36,186.32,2.93]
[1755719149757,133.8,186.36,186.3,0.04029859]
[1755719149956,136.58,186.36,186.3,0.04029859]
[1755719151854,2.78,186.36,186.3,0.04029859]
[1755719152055,136.58,186.35,186.3,2.97029859]
[1755719154765,133.8,186.35,186.31,2.93]
[1755719154964,133.8,186.35,186.32,2.93]
[1755719155158,136.58,186.35,186.3,0.04029859]
[1755719155358,136.58,186.35,186.3,2.97029859]
[1755719156766,136.58,186.35,186.3,8.33789859]
[1755719157162,136.58,186.35,186.31,8.1773]
[1755719157362,133.78,186.34,186.3,0.04029859]
[1755719157563,360.72,186.37,186.3,0.04029859]
[1755719157564,133.78,186.35,186.32,2.81]
[1755719157761,133.78,186.35,186.31,2.81]
[1755719157958,133.78,186.35,186.32,2.81]
[1755719158163,133.78,186.35,186.33,2.81]
[1755719158564,133.78,186.35,186.33,8.1768]
[1755719158970,133.78,186.35,186.33,2.81]
[1755719160473,2.77,186.33,186.3,0.04029859]
[1755719160770,2.77,186.31,186.3,0.04029859]
[1755719161067,136.53,186.31,186.3,0.04029859]
[1755719161771,133.76,186.31,186.3,0.04029859]
[1755719161971,133.76,186.32,186.3,0.04029859]
[1755719162272,133.76,186.33,186.31,2.81]
[1755719162477,133.76,186.33,186.3,0.04029859]
[1755719162675,133.76,186.33,186.3,2.85029859]
[1755719162877,133.76,186.33,186.31,2.81]